[Event "10th Norway Chess Blitz 2022"]
[Site "Stavanger"]
[Date "2022.05.30"]
[Round "5.3"]
[White "Mamedyarov, Shakhriyar"]
[Black "Radjabov, Teimour"]
[Result "1/2-1/2"]
[ECO "D13"]
[WhiteElo "2770"]
[BlackElo "2753"]
[Annotator "TA"]
[PlyCount "81"]
[EventDate "2022.05.30"]
[EventType "tourn"]
[EventCountry "NOR"]
[SourceTitle "playchess.com"]
[Source "ChessBase"]
[SourceQuality "1"]
[TimeControl "180+2"]

{[%evp 20,81,20,14,10,13,17,19,31,25,23,18,24,-3,-13,-14,-15,-46,-30,-32,-22,-33,0,0,0,0,0,0,0,0,3,6,13,0,0,0,0,-12,-12,-14,-18,-14,0,0,0,0,0,0,0,0,0,0,0,0,0,0,0,0,0,0,0,0,0,0]} 1. d4 {[%emt 0:00:01]} d5 {[%emt 0:00:01]} 2. c4 {[%emt 0:00:02]} c6 {[%emt 0:00:01]} 3. Nf3 {[%emt 0:00:05]} Nf6 {[%emt 0:00:02]} 4. cxd5 {[%emt 0:00:04]} cxd5 {[%emt 0:00:01]} 5. Nc3 {[%emt 0:00:03]} Nc6 {[%emt 0:00:15]} 6. Bf4 {[%emt 0:00:16]} e6 {[%emt 0:00:06]} 7. e3 {[%emt 0:00:09]} Bd6 {[%emt 0:00:01]} 8. Bxd6 {[%emt 0:00:11]} Qxd6 {[%emt 0:00:00]} 9. Be2 {[%emt 0:00:13]} O-O {[%emt 0:00:03]} 10. O-O {[%emt 0:00:02]} Bd7 {[%emt 0:00:06]} 11. a3 {[%emt 0:00:03]} Rfc8 {[%emt 0:00:05] D13: Slav Defence: Exchange variation without ...Bf5.} 12. Rc1 {[%emt 0:00:17]} Be8 {[%emt 0:00:06]} 13. Bd3 {[%emt 0:00:30] [#]} g6 $146 {[%emt 0:00:26]} ({Predecessor:} 13... Na5 14. Qe2 Rab8 15. e4 dxe4 16. Nxe4 Qf4 17. Nxf6+ Qxf6 18. Qe4 g6 19. Ne5 Nc6 {½-½ (30) Markowski,T (2581)-Jirovsky,M (2480) Germany 2013}) 14. h3 {[%emt 0:00:03]} Kg7 {[%emt 0:00:06]} 15. Qe2 {[%emt 0:00:17]} a6 {[%emt 0:00:40]} 16. e4 {[%emt 0:00:28]} dxe4 {[%emt 0:00:17]} 17. Nxe4 {[%emt 0:00:01]} Nxe4 {[%emt 0:00:07]} 18. Qxe4 {[%emt 0:00:02]} Rc7 {[%emt 0:00:10]} 19. Rc3 {[%emt 0:00:16]} Rac8 {[%emt 0:00:11]} 20. Rfc1 {[%emt 0:00:03]} Ne7 {[%emt 0:00:07]} 21. Rxc7 {[%emt 0:00:03] The position is equal.} (21. Rc5 {with more complications.} Rc6 22. Qe3 Nd5 23. Qe5+) 21... Rxc7 {[%emt 0:00:01]} 22. Rxc7 {[%emt 0:00:02]} Qxc7 {[%emt 0:00:01]} 23. Qe5+ {[%emt 0:00:03]} Qxe5 {[%emt 0:00:04]} 24. dxe5 $11 {[%emt 0:00:07][%mdl 4096] Endgame KBN-KBN} Bc6 {[%emt 0:00:10]} 25. Nd4 {[%emt 0:00:02]} Bd5 {[%emt 0:00:01]} 26. Ne2 {[%emt 0:00:04]} f6 {[%emt 0:00:13]} 27. exf6+ {[%emt 0:00:02]} Kxf6 {[%emt 0:00:01]} 28. f4 {[%emt 0:00:09]} e5 {[%emt 0:00:02]} 29. Kf2 {[%emt 0:00:01]} exf4 {[%emt 0:00:09]} 30. Nxf4 {[%emt 0:00:01]} Bc6 {[%emt 0:00:01]} 31. g3 {[%emt 0:00:04]} Nd5 {[%emt 0:00:05]} 32. Nxd5+ {[%emt 0:00:02]} Bxd5 {[%emt 0:00:01] KB-KB} 33. Ke3 {[%emt 0:00:01]} Ke5 {[%emt 0:00:04]} 34. h4 {[%emt 0:00:01]} a5 {[%emt 0:00:02]} 35. Bc2 {[%emt 0:00:04]} b6 {[%emt 0:00:02]} 36. Bd3 {[%emt 0:00:01]} Be6 {[%emt 0:00:03]} 37. Bc2 {[%emt 0:00:01]} Bd5 {[%emt 0:00:01]} 38. Bd3 {[%emt 0:00:01]} Be6 {[%emt 0:00:01]} 39. Bc2 {[%emt 0:00:00]} Bd5 {[%emt 0:00:01]} 40. Bd3 {[%emt 0:00:01]} Be6 {[%emt 0:00:01]} 41. Bc2 {[%emt 0:00:05] Weighted Error Value: White=0.05 (flawless) /Black=0.05 (flawless)} 1/2-1/2

[Event "10th Norway Chess Blitz 2022"]
[Site "Stavanger"]
[Date "2022.05.30"]
[Round "5.4"]
[White "Vachier-Lagrave, Maxime"]
[Black "Topalov, Veselin"]
[Result "0-1"]
[ECO "B57"]
[WhiteElo "2750"]
[BlackElo "2730"]
[Annotator "TA"]
[PlyCount "81"]
[EventDate "2022.05.30"]
[EventType "tourn"]
[EventCountry "NOR"]
[SourceTitle "playchess.com"]
[Source "ChessBase"]
[SourceQuality "1"]
[TimeControl "180+2"]

{[%evp 16,81,11,14,20,12,19,16,14,-61,-27,-24,-25,-29,0,-47,-44,-57,-54,-78,0,0,54,49,54,55,55,61,83,-108,-108,-88,0,0,166,-634,-382,-632,-630,-624,-625,-618,-617,-614,-580,-607,-598,-581,-562,-921,-909,-912,-899,-895,-893,-873,-869,-857,-845,-1008,-1006,-1788,-1773,-2154,-2138,-2054,-1906,-1702]} 1. e4 {[%emt 0:00:01]} c5 {[%emt 0:00:01]} 2. Nf3 {[%emt 0:00:02]} d6 {[%emt 0:00:01]} 3. d4 {[%emt 0:00:01]} cxd4 {[%emt 0:00:01]} 4. Nxd4 {[%emt 0:00:01]} Nf6 {[%emt 0:00:02]} 5. Nc3 {[%emt 0:00:01]} Nc6 {[%emt 0:00:01]} 6. Bc4 {[%emt 0:00:12]} Qb6 {[%emt 0:00:06]} 7. Nxc6 {[%emt 0:00:05]} bxc6 {[%emt 0:00:01]} 8. O-O {[%emt 0:00:03]} g6 {[%emt 0:00:07]} 9. b3 {[%emt 0:00:12]} Bg7 {[%emt 0:00:02] B57: Classical Sicilian: Sozin with 6...Qb6.} 10. Bb2 {[%emt 0:00:02]} O-O {[%emt 0:00:02][%cal Of6e4]} 11. Qe1 {[%emt 0:00:18]} Qc7 {[%emt 0:00:11] [#] The position is equal.} 12. f4 $146 {[%emt 0:00:28]} (12. Rd1 $11) ({Predecessor:} 12. Kh1 Bb7 13. Bd3 e5 14. Na4 Nh5 15. Rd1 f5 16. c4 Nf4 17. Bb1 fxe4 18. Bxe4 {½-½ (24) Areshchenko,A (2647)-Jankovic,A (2541) Dresden 2007}) 12... d5 {[%emt 0:00:11]} (12... Nxe4 $5 13. Qxe4 d5 $15) 13. exd5 {[%emt 0:00:08]} cxd5 {[%emt 0:00:01]} 14. Bd3 {[%emt 0:00:11]} (14. Nxd5 $2 Nxd5 15. Bxg7 Kxg7 $19) 14... Ba6 {[%emt 0:01:07]} 15. Bxa6 {[%emt 0:00:11]} (15. Na4 $11 Bxd3 16. cxd3) 15... Qb6+ $15 {[%emt 0:00:00]} 16. Kh1 {[%emt 0:00:01] Hoping for Bd3.} Qxa6 {[%emt 0:00:01]} 17. Qxe7 {[%emt 0:00:17]} d4 {[%emt 0:00:07]} ({Better is} 17... Rfe8 $17 18. Qa3 Qxa3 19. Bxa3 Rac8) 18. Qe2 $11 {[%emt 0:00:13]} Qc6 {[%emt 0:00:06]} ({Black should play} 18... Qb7 $11 19. Qb5 Qc7) 19. Nb5 $14 {[%emt 0:00:05]} Rfe8 {[%emt 0:00:11]} 20. Qd3 {[%emt 0:00:02]} (20. Nxd4 Rxe2 21. Nxc6 Rxc2 22. Ne7+ Kh8 $11) 20... Ng4 {[%emt 0:00:24]} 21. Nxd4 {[%emt 0:00:01]} Qc5 {[%emt 0:00:01] [#]} 22. c3 $2 {[%emt 0:00:09]} (22. h3 $1 $16 {[%cal Rh3g4] keeps the pressure on.} Ne3 23. Rf3) 22... Re3 $40 {[%emt 0:00:06][%mdl 128] Black is out for blood.} 23. Qd2 {[%emt 0:00:04] aiming for h3.} Rae8 {[%emt 0:00:25] Black is more active.} (23... Bxd4 $17 24. cxd4 (24. h3 $2 Qd5 $19) 24... Qh5) 24. h3 $11 {[%emt 0:00:04]} Qh5 {[%emt 0:00:02]} (24... Bxd4 $11 {and Black is okay.} 25. hxg4 (25. cxd4 Qd5 $17) (25. Qxd4 $2 Qh5 $19) 25... Re2 26. Qxd4 (26. cxd4 Qd5 $17) 26... Qxd4 27. cxd4 Rxb2) 25. Rae1 $4 {[%emt 0:00:36][%mdl 8192]} (25. Nf3 $18) 25... Bxd4 {[%emt 0:00:02]} 26. cxd4 $2 {[%emt 0:00:07] [#]} (26. Rxe3 Bxe3 27. Qe2) 26... Rxh3+ $1 $19 {[%emt 0:00:02][%mdl 512] Black is clearly winning.} 27. gxh3 {[%emt 0:00:01]} Qxh3+ {[%emt 0:00:01]} 28. Kg1 {[%emt 0:00:01]} Rxe1 {[%emt 0:00:01]} 29. Rxe1 {[%emt 0:00:03]} Qg3+ {[%emt 0:00:01]} 30. Kf1 {[%emt 0:00:01]} Nh2+ {[%emt 0:00:01]} 31. Qxh2 {[%emt 0:00:02]} Qxh2 {[%emt 0:00:01][%mdl 4096] Endgame KQ-KRB} 32. Ba1 {[%emt 0:00:10]} Qxf4+ {[%emt 0:00:01]} 33. Ke2 {[%emt 0:00:03]} h5 {[%emt 0:00:01][%cal Bh7h5,Bh5h4,Bh4h3,Bh3h2][%mdl 32]} 34. Kd3 {[%emt 0:00:05]} h4 {[%emt 0:00:02]} 35. d5 {[%emt 0:00:01]} Qf3+ {[%emt 0:00:02]} 36. Kc4 {[%emt 0:00:04]} g5 {[%emt 0:00:02]} 37. Be5 {[%emt 0:00:04]} h3 {[%emt 0:00:02]} 38. d6 {[%emt 0:00:04]} f6 {[%emt 0:00:00]} 39. Bd4 {[%emt 0:00:03]} Qc6+ {[%emt 0:00:02]} 40. Bc5 {[%emt 0:00:00]} h2 {[%emt 0:00:00]} 41. Kd4 {[%emt 0:00:04] Weighted Error Value: White=0.98/Black=0.26 (precise)} 0-1

[Event "10th Norway Chess Blitz 2022"]
[Site "Stavanger"]
[Date "2022.05.30"]
[Round "5.5"]
[White "Tari, Aryan"]
[Black "So, Wesley"]
[Result "0-1"]
[ECO "C67"]
[WhiteElo "2654"]
[BlackElo "2766"]
[Annotator "TA"]
[PlyCount "120"]
[EventDate "2022.05.30"]
[EventType "tourn"]
[EventCountry "NOR"]
[SourceTitle "playchess.com"]
[Source "ChessBase"]
[SourceQuality "1"]
[TimeControl "180+2"]

{[%evp 15,120,0,-6,-50,-32,-39,-39,-48,-46,-61,-51,-83,-79,-218,-80,-77,-26,-104,-35,-57,-34,-45,-47,-45,-33,-29,-40,-38,-41,-41,-47,-46,-39,-70,-57,-76,-74,-75,-75,-89,-85,-89,-95,-86,-85,-127,-127,-121,-130,-471,-470,-478,-478,-478,-478,-478,-478,-464,-453,-481,-460,-551,-527,-501,-458,-564,-546,-543,-473,-1539,-1421,-935,-500,-1250,-1304,-1791,-475,-695,-671,-3342,-1056,-1339,-985,-1246,-1097,-1094,-816,-972,-840,-718,-635,-1689,-1387,-2756,-2298,-3056,-2702,-29996,-1847,-1847,-1652,-4618,-4370,-1724,-751,-571,-470]} 1. e4 {[%emt 0:00:01]} e5 {[%emt 0:00:01]} 2. Nf3 {[%emt 0:00:02]} Nc6 {[%emt 0:00:01]} 3. Bb5 {[%emt 0:00:01]} Nf6 {[%emt 0:00:01]} 4. O-O {[%emt 0:00:02]} Nxe4 {[%emt 0:00:01]} 5. d4 {[%emt 0:00:03]} Nd6 {[%emt 0:00:02]} 6. dxe5 {[%emt 0:00:02]} Nxb5 {[%emt 0:00:01]} 7. a4 {[%emt 0:00:01]} d6 {[%emt 0:00:05]} 8. axb5 {[%emt 0:00:06]} Nxe5 {[%emt 0:00:01]} 9. Nd4 {[%emt 0:00:52] C67: Ruy Lopez: Berlin Defence: 4 0-0 Nxe4.} Be7 {[%emt 0:00:13] [#]} 10. Nc3 $146 {[%emt 0:00:04]} ({Predecessor:} 10. f4 Nc4 11. Re1 Nb6 12. Qe2 Be6 13. f5 Bc4 14. Qg4 O-O 15. b3 c5 16. bxc6 Bd5 {0-1 (60) Babazada,K (2431)-Oparin,G (2685) Chess.com INT 2022}) 10... O-O {[%emt 0:00:06]} 11. Nd5 {[%emt 0:00:02] Black is slightly better.} Re8 {[%emt 0:00:35]} 12. Ra3 {[%emt 0:00:45]} Bg4 {[%emt 0:00:08]} 13. Qe1 {[%emt 0:00:17]} Bf8 {[%emt 0:00:11][%cal Oe5f3] And now ...Nf3+! would win.} 14. Qb4 {[%emt 0:00:05] [#]} (14. Qc3 $17) 14... Qd7 {[%emt 0:00:13]} (14... Bd7 $1 $19 {has better winning chances. aiming for ...c6.} 15. Qb3 c6 16. bxc6 bxc6) 15. Rg3 $17 {[%emt 0:00:29]} Kh8 {[%emt 0:00:06]} (15... c6 $17 16. bxc6 bxc6) 16. h3 {[%emt 0:00:07]} (16. Bg5 $11 {remains equal.}) 16... Bh5 {[%emt 0:00:14]} (16... Be6 $17 17. Nxe6 fxe6) 17. Qc3 {[%emt 0:00:17]} c5 {[%emt 0:00:21]} 18. bxc6 $1 {[%emt 0:00:01]} bxc6 {[%emt 0:00:40]} 19. Nf4 {[%emt 0:00:01]} Bg6 {[%emt 0:00:00]} 20. Nxg6+ {[%emt 0:00:01]} hxg6 {[%emt 0:00:05]} 21. f4 {[%emt 0:00:07]} c5 {[%emt 0:00:01]} 22. fxe5 {[%emt 0:00:03]} cxd4 {[%emt 0:00:01]} 23. Qxd4 {[%emt 0:00:07]} Rxe5 {[%emt 0:00:00]} 24. Bf4 {[%emt 0:00:03]} Rf5 {[%emt 0:00:03]} 25. Rgf3 {[%emt 0:00:03]} Rc8 {[%emt 0:00:04] Black continues to play with concentration.} 26. c3 {[%emt 0:00:00]} Kg8 {[%emt 0:00:06]} 27. Be3 {[%emt 0:00:03]} a5 {[%emt 0:00:03]} 28. Rxf5 {[%emt 0:00:01]} gxf5 {[%emt 0:00:01]} 29. Qd5 {[%emt 0:00:01]} Qe6 {[%emt 0:00:04]} 30. Qf3 {[%emt 0:00:08]} g6 {[%emt 0:00:05]} 31. Rd1 {[%emt 0:00:04]} a4 {[%emt 0:00:05][%cal Oa4a3]} 32. Rd2 $2 {[%emt 0:00:01][%mdl 8192]} (32. Bd4 $17) 32... a3 $19 {[%emt 0:00:01]} 33. bxa3 {[%emt 0:00:05]} Rxc3 {[%emt 0:00:01]} 34. Re2 {[%emt 0:00:00]} Rxa3 {[%emt 0:00:01]} 35. Qf2 {[%emt 0:00:02]} Ra1+ {[%emt 0:00:04]} 36. Kh2 {[%emt 0:00:01]} Bg7 {[%emt 0:00:03]} 37. Bf4 {[%emt 0:00:00]} Be5 {[%emt 0:00:03] [#] ...Bxf4+ is the strong threat.} 38. Bxe5 {[%emt 0:00:04]} dxe5 {[%emt 0:00:01][%mdl 4096] Endgame KQR-KQR} 39. Qc5 {[%emt 0:00:02]} e4 {[%emt 0:00:01]} 40. Rd2 {[%emt 0:00:03] Black must now prevent Rd8+.} Ra8 {[%emt 0:00:02] Inhibits Rd8+.} 41. Rd6 {[%emt 0:00:00]} Qc8 {[%emt 0:00:06]} 42. Qd5 {[%emt 0:00:02]} (42. Qe5 $142 Qb8 43. Kg3) 42... Qb8 {[%emt 0:00:02] ( -> ...Ra6)} 43. Qe5 {[%emt 0:00:03]} Qf8 {[%emt 0:00:07]} 44. Rd7 {[%emt 0:00:04]} (44. Rd5 $142 Re8 45. Qg3) 44... Re8 {[%emt 0:00:02]} 45. Qg3 {[%emt 0:00:03]} Rd8 {[%emt 0:00:03]} (45... e3 $142 46. Rd1 Qb4) 46. Rb7 {[%emt 0:00:01]} (46. Rc7 $142 e3 47. Rc2) 46... Qd6 {[%emt 0:00:01]} 47. h4 {[%emt 0:00:02]} Kg7 {[%emt 0:00:02]} (47... f4 $142 48. Qc3 f3+ 49. g3 Qe6) 48. Kh3 {[%emt 0:00:02]} Qxg3+ {[%emt 0:00:02]} 49. Kxg3 {[%emt 0:00:01] KR-KR} Rd2 {[%emt 0:00:01]} 50. Rb6 {[%emt 0:00:02]} Ra2 {[%emt 0:00:05]} 51. Rc6 {[%emt 0:00:01]} Ra7 {[%emt 0:00:02]} 52. Kf4 {[%emt 0:00:01]} Re7 {[%emt 0:00:01]} 53. Rc3 {[%emt 0:00:02]} Kh6 {[%emt 0:00:03]} 54. g3 {[%emt 0:00:03]} Rd7 {[%emt 0:00:02] Strongly threatening ...Rd3.} 55. Rb3 {[%emt 0:00:04]} Rd3 {[%emt 0:00:02]} 56. Rb8 {[%emt 0:00:02]} Rf3+ {[%emt 0:00:02]} (56... f6 $142 57. Rh8+ Kg7 58. Rg8+ Kxg8 59. g4 Rf3#) 57. Ke5 {[%emt 0:00:01] Black is clearly winning.} Kg7 {[%emt 0:00:01]} 58. g4 {[%emt 0:00:02]} fxg4 {[%emt 0:00:01]} 59. Kxe4 {[%emt 0:00:01]} Rh3 {[%emt 0:00:08]} (59... f5+ $142 60. Ke5 g3) 60. Kf4 {[%emt 0:00:03]} Rxh4 {[%emt 0:00:01] Weighted Error Value: White=0.64/Black=0.30} 0-1

[Event "10th Norway Chess Blitz 2022"]
[Site "Stavanger"]
[Date "2022.05.30"]
[Round "6.1"]
[White "Carlsen, Magnus"]
[Black "So, Wesley"]
[Result "0-1"]
[ECO "A00"]
[WhiteElo "2864"]
[BlackElo "2766"]
[Annotator "TA"]
[PlyCount "68"]
[EventDate "2022.05.30"]
[EventType "tourn"]
[EventCountry "NOR"]
[SourceTitle "playchess.com"]
[Source "ChessBase"]
[SourceQuality "1"]
[TimeControl "180+2"]

{[%evp 9,68,0,0,0,0,0,0,-7,0,-1,0,0,0,0,26,-14,-5,-15,-16,-18,-5,-7,-10,-8,-9,-18,-15,-15,-12,-18,-4,-12,-18,-18,0,-241,-230,-241,-240,-270,-148,-142,-158,-152,-158,-240,-229,-222,-229,-225,-230,-264,-279,-259,-252,-255,-245,-470,-417,-429,-420]} 1. a4 {[%emt 0:00:01]} Nf6 {[%emt 0:00:12]} 2. Nf3 {[%emt 0:00:11]} g6 {[%emt 0:00:11]} 3. g3 {[%emt 0:00:02]} Bg7 {[%emt 0:00:01]} 4. Bg2 {[%emt 0:00:02]} O-O {[%emt 0:00:02]} 5. d4 {[%emt 0:00:10]} d5 {[%emt 0:00:15][%cal Oc7c5]} 6. O-O {[%emt 0:00:03][%cal Oc2c4] A00: Irregular Openings.} c5 {[%emt 0:00:17]} 7. dxc5 {[%emt 0:00:07]} Na6 {[%emt 0:00:01]} 8. Nc3 {[%emt 0:00:15] The position is equal.} Nxc5 {[%emt 0:00:01]} 9. Be3 {[%emt 0:00:02]} b6 {[%emt 0:00:05]} 10. a5 {[%emt 0:00:02]} Bb7 {[%emt 0:00:01]} 11. Bd4 {[%emt 0:00:40] [#]} e6 $146 {[%emt 0:00:06]} ({Predecessor:} 11... Ncd7 12. Qd3 Re8 13. Ne5 Nxe5 14. Bxe5 e6 15. Rfd1 Nd7 16. Bxg7 Kxg7 17. e4 Nc5 {1-0 (45) Moradiabadi,E (2528)-Chu,R (2267) Chess.com INT 2018}) 12. Ra3 {[%emt 0:00:03]} Qe7 {[%emt 0:00:22]} 13. Qa1 {[%emt 0:00:03]} Ncd7 {[%emt 0:00:24] [#] And now ...e5 would win.} 14. Ne5 {[%emt 0:00:22]} Nxe5 {[%emt 0:00:06]} 15. Bxe5 {[%emt 0:00:01]} Bc6 {[%emt 0:00:03]} 16. axb6 {[%emt 0:01:01]} axb6 {[%emt 0:00:00]} 17. Rxa8 {[%emt 0:00:03]} Rxa8 {[%emt 0:00:01]} 18. Qd1 {[%emt 0:00:07]} Bf8 {[%emt 0:00:07]} 19. Qd3 {[%emt 0:00:10] Prevents b5.} Nd7 {[%emt 0:00:05]} 20. Bd4 {[%emt 0:00:03]} Qb4 {[%emt 0:00:12]} 21. Rb1 {[%emt 0:00:07]} Rc8 {[%emt 0:00:05]} 22. Nd1 $2 {[%emt 0:00:07] [#]} (22. e4 $11 {and White stays safe.}) 22... Bb5 $19 {[%emt 0:00:06]} 23. Qe3 {[%emt 0:00:03]} Rxc2 {[%emt 0:00:05] White must now prevent ...e5.} ({Not} 23... Qe1+ 24. Bf1 Qb4 25. Bc3 $17 (25. Nc3 Bc6 $17)) 24. Bc3 {[%emt 0:00:01] Prevents e5.} Qc5 {[%emt 0:00:19]} ({Stronger than} 24... Rxe2 25. Bxb4 Rxe3 26. Nxe3 $15) (24... Qc4 $19 {Strongly threatening ...Bc5.} 25. Qd3 Qa4) 25. Bf1 $17 {[%emt 0:00:01]} e5 {[%emt 0:00:07][%cal Be6e5,Be5d4][%mdl 32] Black is more active.} 26. Qxc5 {[%emt 0:00:04]} Bxc5 {[%emt 0:00:04]} ({Don't take} 26... bxc5 27. Ne3 Rxc3 28. bxc3 $14) 27. e3 (27. b4 $17 Bd6 28. e3 Bxf1 29. Kxf1) 27... Bxf1 $19 {[%emt 0:00:00]} 28. Kxf1 {[%emt 0:00:02]} d4 {[%emt 0:00:01]} 29. exd4 {[%emt 0:00:02]} exd4 {[%emt 0:00:01]} 30. Be1 {[%emt 0:00:01]} Ne5 {[%emt 0:00:04]} 31. b4 {[%emt 0:00:02]} Bd6 {[%emt 0:00:01]} 32. Rb3 {[%emt 0:00:02]} Rc1 {[%emt 0:00:04]} 33. Nb2 {[%emt 0:00:04] Against d3} (33. f4 {was forced.} Rxd1 34. fxe5 Bxe5 35. Ke2) 33... d3 {[%emt 0:00:03]} 34. Nxd3 {[%emt 0:00:03]} Nxd3 {[%emt 0:00:02] Weighted Error Value: White=0.30/Black=0.09 (flawless)} 0-1

[Event "10th Norway Chess Blitz 2022"]
[Site "Stavanger"]
[Date "2022.05.30"]
[Round "6.3"]
[White "Radjabov, Teimour"]
[Black "Vachier-Lagrave, Maxime"]
[Result "0-1"]
[ECO "D27"]
[WhiteElo "2753"]
[BlackElo "2750"]
[Annotator "TA"]
[PlyCount "92"]
[EventDate "2022.05.30"]
[EventType "tourn"]
[EventCountry "NOR"]
[SourceTitle "playchess.com"]
[Source "ChessBase"]
[SourceQuality "1"]
[TimeControl "180+2"]

{[%evp 16,92,30,34,31,15,17,18,13,8,38,30,26,8,22,0,0,0,28,0,5,0,0,0,6,0,0,0,0,0,0,0,0,0,0,0,0,4,22,0,0,0,-8,-110,-126,-112,-128,-127,-113,-120,-113,-117,-95,-200,-79,-311,-308,-534,-534,-532,-509,-596,-587,-557,-420,-847,-814,-832,-812,-800,-787,-784,-782,-782,-778,-781,-760,-1161,-1023]} 1. Nf3 {[%emt 0:00:01]} d5 {[%emt 0:00:01]} 2. d4 {[%emt 0:00:02]} Nf6 {[%emt 0:00:01]} 3. c4 {[%emt 0:00:01]} dxc4 {[%emt 0:00:01]} 4. e3 {[%emt 0:00:01]} e6 {[%emt 0:00:01]} 5. Bxc4 {[%emt 0:00:02]} a6 {[%emt 0:00:01]} 6. b3 {[%emt 0:00:01]} c5 {[%emt 0:00:04]} 7. Bb2 {[%emt 0:00:02]} cxd4 {[%emt 0:00:05]} 8. Nxd4 {[%emt 0:00:01]} Be7 {[%emt 0:00:03]} 9. O-O {[%emt 0:00:05]} O-O {[%emt 0:00:02] D27: Queen's Gambit Accepted: Classical main line: 7 e4!? and 7 a4.} 10. Nd2 {[%emt 0:00:01] [#]} b5 $146 {[%emt 0:00:01]} ({Predecessor:} 10... Bd7 11. N2f3 Nc6 12. Qe2 b5 13. Bd3 Rc8 14. Rac1 Qb6 15. Rfd1 Rfd8 16. e4 Be8 17. Nxc6 Bxc6 {½-½ (59) Schneider,L (1480)-Sefeloge,M (1763) Wiesbaden 2018}) 11. Be2 {[%emt 0:00:02]} Bb7 {[%emt 0:00:01] The position is equal.} 12. Rc1 {[%emt 0:00:05]} h6 {[%emt 0:00:13]} 13. Bf3 {[%emt 0:00:04]} Nd5 {[%emt 0:00:39]} 14. Ne4 {[%emt 0:00:05]} Qb6 {[%emt 0:00:04] Against Nc5} 15. Ng3 {[%emt 0:00:31] And now Bxd5 would win.} Rd8 {[%emt 0:00:02]} 16. Nh5 {[%emt 0:00:10][%cal Oh5g7] aiming for Nxg7!} Nf6 {[%emt 0:00:06]} (16... Bf8 $5 {[%cal Re6e5]}) 17. Qe2 {[%emt 0:00:27][%cal Od4e6]} Nxh5 {[%emt 0:00:16]} 18. Bxb7 {[%emt 0:00:03]} Qxb7 {[%emt 0:00:02]} 19. Qxh5 {[%emt 0:00:01]} Bf6 {[%emt 0:00:12]} 20. Ba1 {[%emt 0:00:28]} Rd5 {[%emt 0:00:07]} 21. Qf3 {[%emt 0:00:01][%cal Oc1c5]} Bxd4 {[%emt 0:00:32]} 22. Bxd4 {[%emt 0:00:03]} Nc6 {[%emt 0:00:02]} 23. Bc3 {[%emt 0:00:13]} Rad8 {[%emt 0:00:08]} 24. h3 {[%emt 0:00:07]} Qd7 {[%emt 0:00:17]} 25. Rc2 {[%emt 0:00:21]} b4 {[%emt 0:00:17]} 26. Bb2 {[%emt 0:00:07]} a5 {[%emt 0:00:01]} 27. Qg4 {[%emt 0:00:28][%csl Gb2][%cal Rg4g7]} Ne5 {[%emt 0:00:23]} 28. Qg3 {[%emt 0:00:01]} Ng6 {[%emt 0:00:01] Active counter play!} 29. Kh2 {[%emt 0:00:15]} (29. Qf3 $11 {keeps the balance.}) 29... Rg5 $17 {[%emt 0:00:06]} 30. Qc7 {[%emt 0:00:01] [#]} Qxc7+ $1 {[%emt 0:00:02]} ({But not} 30... Qd5 31. f4 Rd7 32. Qc8+ (32. fxg5 $2 Rxc7 33. Rxc7 Qd6+ 34. Kg1 Qxc7 $19) 32... Rd8 33. Qc7 $14 (33. fxg5 Rxc8 34. Rxc8+ Kh7 $11)) 31. Rxc7 {[%emt 0:00:01]} Rd2 {[%emt 0:00:02]} 32. Bc1 {[%emt 0:00:11]} Rxa2 {[%emt 0:00:02] Hoping for ...Rd5.} 33. e4 {[%emt 0:00:00] Against Rd5} Rb5 {[%emt 0:00:02]} 34. Be3 {[%emt 0:00:03] [#]} (34. f4 $17 {was necessary.}) 34... a4 {[%emt 0:00:02]} (34... Rb2 $1 $19 {[%cal Rb2b3] has better winning chances.} 35. Rd1 Rxb3 36. Rd8+ Kh7) 35. Rb1 {[%emt 0:00:03] White does not recover from this.} (35. bxa4 $17 Rxa4 36. Rb1) 35... a3 $19 {[%emt 0:00:05][%cal Ba4a3,Ba3a2][%mdl 32]} 36. Rc4 $2 {[%emt 0:00:01]} (36. Rd1 {was worth a try.} Rb8 37. Ra7) 36... Ne5 {[%emt 0:00:02]} 37. Rd4 {[%emt 0:00:02]} Rc2 {[%emt 0:00:01]} 38. Rbd1 {[%emt 0:00:03]} Nc6 {[%emt 0:00:03]} 39. Rd7 {[%emt 0:00:01]} a2 {[%emt 0:00:03]} 40. Rc7 {[%emt 0:00:01]} (40. Ra1 $142) 40... Ra5 {[%emt 0:00:01] Black is clearly winning.} 41. Ra1 {[%emt 0:00:02]} Ra6 {[%emt 0:00:01][%cal Oc6d4]} 42. Rb7 {[%emt 0:00:04]} Rc3 {[%emt 0:00:03]} 43. Rb6 {[%emt 0:00:03]} Rxb6 {[%emt 0:00:01]} 44. Bxb6 {[%emt 0:00:01]} Rc2 {[%emt 0:00:02]} 45. f4 {[%emt 0:00:01]} e5 {[%emt 0:00:02]} 46. Kg3 {[%emt 0:00:02]} Nd4 {[%emt 0:00:03] Weighted Error Value: White=0.50/Black=0.10 (very precise)} 0-1